fUST/lending_fUST_20250302
["ID","MTS","AMOUNT","RATE_DAILY","PERIOD"]
[355109040,1740899440423,-500.0,0.00022544,2]
[355109041,1740899440433,-500.0,0.00022544,2]
[355109042,1740899440443,-500.0,0.00022544,2]
[355109044,1740899440454,-500.0,0.00022544,2]
[355109045,1740899440464,-500.0,0.00022544,2]
[355109046,1740899440474,-420.42752187,0.00022544,2]
[355109047,1740899440484,-500.0,0.00022544,2]
[355109048,1740899440495,-500.0,0.00022544,2]
[355109049,1740899440505,-500.0,0.00022544,2]
[355109050,1740899440515,-500.0,0.00022544,2]
[355109051,1740899440526,-500.0,0.00022544,2]
[355109052,1740899440538,-500.0,0.00022544,2]
[355109053,1740899440547,-500.0,0.00022544,2]
[355109054,1740899440557,-500.0,0.00022544,2]
[355109055,1740899440567,-500.0,0.00022544,2]
[355109056,1740899440577,-500.0,0.00022544,2]
[355109057,1740899440587,-500.0,0.00022544,2]
[355109058,1740899440597,-500.0,0.00022544,2]
[355109059,1740899440607,-500.0,0.00022544,2]
[355109060,1740899440616,-500.0,0.00022544,2]
[355109061,1740899440627,-500.0,0.00022544,2]
[355109062,1740899440637,-500.0,0.00022544,2]
[355109063,1740899440647,-500.0,0.00022544,2]
[355109064,1740899440657,-500.0,0.00022544,2]
[355109065,1740899440667,-500.0,0.00022544,2]
[355109066,1740899440677,-500.0,0.00022544,2]
[355109067,1740899440688,-500.54709086,0.00022544,2]
[355109068,1740899440698,-500.0,0.00022544,2]
[355109069,1740899440708,-500.0,0.00022544,2]
[355109070,1740899440718,-500.0,0.00022544,2]
[355109071,1740899440728,-503.43151366,0.00022544,2]
[355109072,1740899440738,-500.0,0.00022544,2]
[355109073,1740899440748,-500.0,0.00022544,2]
[355109074,1740899440759,-500.0,0.00022544,2]
[355109075,1740899440768,-500.0,0.00022544,2]
[355109076,1740899440779,-500.0,0.00022544,2]
[355109077,1740899440791,-500.0,0.00022544,2]
[355109078,1740899440801,-500.0,0.00022544,2]
[355109079,1740899440812,-500.0,0.00022544,2]
[355109080,1740899440821,-500.0,0.00022545,2]
[355109081,1740899440832,-500.0,0.00022545,2]
[355109082,1740899440842,-500.0,0.00022545,2]
[355109083,1740899440856,-500.0,0.00022545,2]
[355109084,1740899440866,-500.0,0.00022545,2]
[355109085,1740899440877,-500.0,0.00022545,2]
[355109086,1740899440887,-500.0,0.00022545,2]
[355109087,1740899440897,-500.0,0.00022545,2]
[355109088,1740899440907,-506.40544591,0.00022545,2]
[355109089,1740899440917,-336.90901644,0.00022545,2]
[355109090,1740899440936,-633.86,0.00022545,2]
[355109091,1740899440946,-500.0,0.00022545,2]
[355109092,1740899440962,-500.0,0.00022545,2]
[355109093,1740899440972,-500.0,0.00022545,2]
[355109094,1740899440982,-500.0,0.00022545,2]
[355109095,1740899440992,-500.0,0.00022545,2]
[355109096,1740899441002,-500.0,0.00022545,2]
[355109097,1740899441011,-500.0,0.00022545,2]
[355109098,1740899441021,-500.0,0.00022545,2]
[355109099,1740899441031,-500.0,0.00022545,2]
[355109100,1740899441041,-500.0,0.00022545,2]
[355109101,1740899441050,-500.0,0.00022545,2]
[355109102,1740899441059,-542.35562418,0.00022573,2]
[355109103,1740899441070,-500.0,0.00022573,2]
[355109104,1740899441079,-500.0,0.00022573,2]
[355109105,1740899441090,-260.59788216,0.00022573,2]
[355109106,1740899441102,-500.0,0.00022573,2]
[355109107,1740899441111,-4029.58,0.00022817,2]
[355109108,1740899441120,-2059.33,0.00022817,2]
[355109109,1740899441130,-1748.19,0.00022817,2]
[355109110,1740899441140,-532.19,0.00022817,2]
[355109111,1740899441150,-500.0,0.00022817,2]
[355109112,1740899441159,-500.0,0.00022817,2]
[355109113,1740899441169,-850.01,0.00022817,2]
[355109114,1740899441179,-500.0,0.00022817,2]
[355109115,1740899441188,-1888.54,0.00022817,2]
[355109116,1740899441199,-3896.87,0.00022817,2]
[355109117,1740899441208,-2329.43,0.00022817,2]
[355109118,1740899441218,-500.0,0.00022817,2]
[355109119,1740899441227,-506.68,0.00022817,2]
[355109120,1740899441238,-448.83,0.00022817,2]
[355109121,1740899441248,-854.04,0.00022817,2]
[355109122,1740899441259,-500.0,0.00022817,2]
[355109123,1740899441269,-510.21,0.00022817,2]
[355109124,1740899441279,-500.0,0.00022817,2]
[355109125,1740899441289,-500.0,0.00022817,2]
[355109126,1740899441299,-245.01344013,0.00022817,2]
[355109127,1740899441309,-204.11332039,0.00022817,2]
[355109128,1740899441319,-3214.12,0.00022817,2]
[355109129,1740899441329,-2493.01,0.00022817,2]
[355109130,1740899441339,-500.0,0.00022817,2]
[355109131,1740899441351,-500.0,0.00022817,2]
[355109132,1740899441361,-500.0,0.00022817,2]
[355109133,1740899441371,-2454.17,0.00022817,2]
[355109134,1740899441382,-500.0,0.00022817,2]
[355109135,1740899441392,-1226.95,0.00022817,2]
[355109136,1740899441403,-500.0,0.00022817,2]
[355109137,1740899441414,-1138.39,0.00022817,2]
[355109138,1740899441425,-500.0,0.00022817,2]
[355109139,1740899441435,-500.0,0.00022817,2]
[355109140,1740899441445,-500.0,0.00022817,2]
[355109141,1740899441458,-1147.35,0.00022817,2]
[355109142,1740899441468,-2292.46,0.00022817,2]
[355109143,1740899441477,-522.8,0.00022817,2]
[355109144,1740899441487,-1534.73,0.00022817,2]
[355109145,1740899441499,-2581.43,0.00022817,2]
[355109146,1740899441509,-500.0,0.00022817,2]
[355109147,1740899441519,-695.07,0.00022817,2]
[355109148,1740899441530,-669.44,0.00022817,2]
[355109149,1740899441540,-500.0,0.00022817,2]
[355109150,1740899441550,-41690.39,0.00022817,2]
[355109151,1740899441560,-892.82,0.00022818,2]
[355109152,1740899441571,-500.0,0.00022818,2]
[355109153,1740899441581,-500.0,0.00022818,2]
[355109154,1740899441591,-500.0,0.00022818,2]
[355109155,1740899441604,-500.0,0.00022818,2]
[355109156,1740899441614,-500.0,0.00022818,2]
[355109157,1740899441624,-500.0,0.00022818,2]
[355109158,1740899441635,-500.0,0.00022818,2]
[355109159,1740899441645,-500.0,0.00022818,2]
[355109160,1740899441655,-500.0,0.00022818,2]
[355109161,1740899441666,-500.0,0.00022818,2]
[355109162,1740899441676,-168.66,0.00022818,2]
[355109163,1740899441686,-500.0,0.00022818,2]
[355109164,1740899441695,-500.0,0.00022818,2]
[355109165,1740899441706,-500.0,0.00022818,2]
[355109166,1740899441717,-500.0,0.00022818,2]
[355109167,1740899441727,-500.0,0.00022818,2]
[355109168,1740899441737,-500.0,0.00022818,2]
[355109169,1740899441747,-500.0,0.00022818,2]
[355109170,1740899441757,-500.0,0.00022818,2]
[355109171,1740899441766,-500.0,0.00022818,2]
[355109172,1740899441776,-500.0,0.00022818,2]
[355109173,1740899441787,-491.14,0.00022818,2]
[355109174,1740899441796,-500.0,0.00022818,2]
[355109175,1740899441806,-500.0,0.00022818,2]
[355109176,1740899441816,-500.0,0.00022818,2]
[355109177,1740899441826,-500.0,0.00022818,2]
[355109178,1740899441837,-500.0,0.00022818,2]
[355109179,1740899441847,-249.37,0.00022818,2]
[355109180,1740899441858,-500.0,0.00022818,2]
[355109181,1740899441868,-500.0,0.00022818,2]
[355109182,1740899441877,-500.0,0.00022818,2]
[355109183,1740899441887,-500.0,0.00022818,2]
[355109184,1740899441897,-607.0,0.00022818,2]
[355109185,1740899441907,-500.0,0.00022818,2]
[355109186,1740899441917,-250.0,0.00022818,2]
[355109187,1740899441927,-500.0,0.00022818,2]
[355109188,1740899441936,-355.68,0.00022818,2]
[355109189,1740899441947,-500.0,0.00022818,2]
[355109190,1740899441957,-500.0,0.00022818,2]
[355109191,1740899441967,-543.88198939,0.00022818,2]
[355109192,1740899441977,-500.0,0.00022818,2]
[355109193,1740899441987,-824.41,0.00022818,2]
[355109194,1740899441996,-500.0,0.00022818,2]
[355109195,1740899442006,-500.0,0.00022818,2]
[355109196,1740899442016,-502.69,0.00022818,2]
[355109197,1740899442026,-500.0,0.00022818,2]
[355109198,1740899442035,-500.0,0.00022818,2]
[355109199,1740899442044,-1234.81,0.00022818,2]
[355109200,1740899442055,-500.0,0.00022818,2]
[355109201,1740899442066,-500.0,0.00022818,2]
[355109202,1740899442076,-500.0,0.00022818,2]
[355109203,1740899442086,-500.0,0.00022818,2]
[355109204,1740899442095,-604.16,0.00022818,2]
[355109205,1740899442106,-500.0,0.00022818,2]
[355109206,1740899442118,-500.0,0.00022818,2]
[355109207,1740899442127,-500.0,0.00022818,2]
[355109208,1740899442137,-658.13,0.00022818,2]
[355109209,1740899442148,-500.0,0.00022818,2]
[355109210,1740899442158,-500.0,0.00022818,2]
[355109211,1740899442171,-500.0,0.00022818,2]
[355109212,1740899442180,-500.0,0.00022818,2]
[355109213,1740899442190,-500.0,0.00022818,2]
[355109214,1740899442200,-650.83,0.00022818,2]
[355109215,1740899442209,-500.0,0.00022818,2]
[355109216,1740899442221,-500.0,0.00022818,2]
[355109217,1740899442232,-500.0,0.00022818,2]
[355109218,1740899442242,-500.0,0.00022818,2]
[355109219,1740899442252,-500.0,0.00022818,2]
[355109220,1740899442263,-500.0,0.00022818,2]
[355109221,1740899442274,-500.0,0.00022818,2]
[355109222,1740899442284,-500.0,0.00022818,2]
[355109223,1740899442295,-1690.54,0.00022818,2]
[355109224,1740899442305,-500.0,0.00022818,2]
[355109225,1740899442315,-161.1,0.00022818,2]
[355109226,1740899442326,-623.62,0.00022818,2]
[355109227,1740899442336,-500.0,0.00022818,2]
[355109228,1740899442346,-199.88,0.00022818,2]
[355109229,1740899442357,-500.0,0.00022818,2]
[355109230,1740899442367,-500.0,0.00022818,2]
[355109231,1740899442376,-500.0,0.00022818,2]
[355109232,1740899442386,-166.93,0.00022818,2]
[355109233,1740899442395,-500.0,0.00022818,2]
[355109234,1740899442405,-500.0,0.00022818,2]
[355109235,1740899442415,-500.0,0.00022818,2]
[355109236,1740899442424,-544.86490327,0.00022818,2]
[355109237,1740899442434,-500.0,0.00022818,2]
[355109238,1740899442443,-500.0,0.00022818,2]
[355109239,1740899442456,-500.0,0.00022818,2]
[355109240,1740899442467,-500.0,0.00022818,2]
[355109241,1740899442476,-622.55,0.00022819,2]
[355109242,1740899442487,-520.91,0.00022819,2]
[355109243,1740899442498,-378.94,0.00022819,2]
[355109244,1740899442507,-500.0,0.00022819,2]
[355109245,1740899442517,-500.0,0.00022819,2]
[355109246,1740899442527,-500.0,0.00022819,2]
[355109247,1740899442539,-500.0,0.00022819,2]
[355109248,1740899442549,-500.0,0.00022819,2]
[355109249,1740899442559,-182.51,0.000229,7]
[355109250,1740899442569,-463.80193016,0.000229,2]
[355109251,1740899442579,-506.8949467,0.00022973,2]
[355109252,1740899442589,-501.38965319,0.00022973,2]
[355109253,1740899442599,-500.0,0.00022973,2]
[355109254,1740899442609,-161.64554503,0.00022973,2]
[355109255,1740899442619,-500.0,0.00022973,2]
[355109257,1740899442629,-500.0,0.00022973,2]
[355109260,1740899442639,-500.0,0.00022973,2]
[355109263,1740899442649,-500.0,0.00022973,2]
[355109267,1740899442659,-500.0,0.00022973,2]
[355109270,1740899442668,-500.0,0.00022973,2]
[355109272,1740899442678,-468.68878311,0.00022973,2]
[355109273,1740899442687,-500.0,0.00022973,2]
[355109274,1740899442697,-500.0,0.00022973,2]
[355109275,1740899442707,-494.71045352,0.00022973,2]
[355109281,1740899442875,-500.0,0.00022973,2]
[355109282,1740899442885,-633.91496447,0.00022973,2]
[355109283,1740899442898,-500.0,0.00022973,2]
[355109284,1740899442907,-500.0,0.00022973,2]
[355109285,1740899442917,-500.0,0.00022973,2]
[355109286,1740899442927,-621.67684457,0.00022973,2]
[355109287,1740899442937,-500.0,0.00022973,2]
[355109288,1740899442947,-500.0,0.00022973,2]
[355109289,1740899442956,-500.0,0.00022973,2]
[355109290,1740899442966,-500.0,0.00022973,2]
[355109291,1740899442976,-500.0,0.00022973,2]
[355109292,1740899442986,-500.0,0.00022973,2]
[355109293,1740899442996,-151.0,0.00022978,2]
[355109294,1740899443006,-393.96975958,0.00022978,2]
[355109295,1740899443015,-222000.0,0.00022992,2]
[355109296,1740899443025,-500.0,0.00023,10]
[355109297,1740899443035,-500.0,0.00023,10]
[355109298,1740899443045,-500.0,0.00023,10]
[355109299,1740899443056,-500.0,0.00023,10]
[355109300,1740899443066,-500.0,0.00023,10]
[355109301,1740899443077,-500.0,0.00023,10]
[355109302,1740899443086,-500.0,0.00023,10]
[355109303,1740899443096,-597.90047472,0.00023,10]
[355109304,1740899443107,-902.09952528,0.00023,10]
[355109305,1740899443116,-500.0,0.00023073,2]
[355109306,1740899443126,-512.11364512,0.00023073,2]
[355109307,1740899443136,-4029.58,0.00023091,2]
[355109308,1740899443146,-2059.33,0.00023091,2]
[355109309,1740899443155,-1748.19,0.00023091,2]
[355109310,1740899443165,-532.19,0.00023091,2]
[355109311,1740899443175,-500.0,0.00023091,2]
[355109312,1740899443184,-500.0,0.00023091,2]
[355109313,1740899443195,-850.01,0.00023091,2]
[355109314,1740899443204,-500.0,0.00023091,2]
[355109315,1740899443214,-1888.54,0.00023091,2]
[355109316,1740899443224,-3896.87,0.00023091,2]
[355109317,1740899443234,-2329.43,0.00023091,2]
[355109318,1740899443243,-500.0,0.00023091,2]
[355109319,1740899443253,-506.68,0.00023091,2]
[355109320,1740899443262,-854.04,0.00023091,2]
[355109321,1740899443271,-500.0,0.00023091,2]
[355109322,1740899443281,-510.21,0.00023091,2]
[355109323,1740899443291,-3214.12,0.00023091,2]
[355109324,1740899443300,-2493.01,0.00023091,2]
[355109325,1740899443310,-500.0,0.00023091,2]
[355109326,1740899443319,-500.0,0.00023091,2]
[355109327,1740899443329,-500.0,0.00023091,2]
[355109329,1740899443339,-2454.17,0.00023091,2]
[355109331,1740899443349,-500.0,0.00023091,2]
[355109333,1740899443358,-1226.95,0.00023091,2]
[355109335,1740899443368,-500.0,0.00023091,2]
[355109338,1740899443377,-1138.39,0.00023091,2]
[355109340,1740899443387,-500.0,0.00023091,2]
[355109342,1740899443397,-500.0,0.00023091,2]
[355109344,1740899443407,-500.0,0.00023091,2]
[355109345,1740899443416,-1147.35,0.00023091,2]
[355109346,1740899443426,-2292.46,0.00023091,2]
[355109347,1740899443435,-522.8,0.00023091,2]
[355109348,1740899443444,-1534.73,0.00023091,2]
[355109349,1740899443456,-2581.43,0.00023091,2]
[355109350,1740899443466,-500.0,0.00023091,2]
[355109351,1740899443476,-695.07,0.00023091,2]
[355109352,1740899443485,-669.44,0.00023091,2]
[355109353,1740899443495,-500.0,0.00023091,2]
[355109354,1740899443504,-41690.39,0.00023091,2]
[355109355,1740899443514,-892.82,0.00023092,2]
[355109356,1740899443523,-500.0,0.00023092,2]
[355109357,1740899443533,-500.0,0.00023092,2]
[355109358,1740899443543,-500.0,0.00023092,2]
[355109359,1740899443553,-500.0,0.00023092,2]
[355109360,1740899443563,-500.0,0.00023092,2]
[355109361,1740899443573,-273.13,0.00023092,2]
[355109362,1740899443583,-500.0,0.00023092,2]
[355109363,1740899443592,-500.0,0.00023092,2]
[355109364,1740899443603,-500.0,0.00023092,2]
[355109365,1740899443613,-500.0,0.00023092,2]
[355109366,1740899443622,-500.0,0.00023092,2]
[355109367,1740899443632,-500.0,0.00023092,2]
[355109368,1740899443642,-500.0,0.00023092,2]
[355109369,1740899443651,-500.0,0.00023092,2]
[355109370,1740899443661,-609.68,0.00023092,2]
[355109371,1740899443671,-500.0,0.00023092,2]
[355109372,1740899443681,-500.0,0.00023092,2]
[355109373,1740899443690,-500.0,0.00023092,2]
[355109374,1740899443700,-500.0,0.00023092,2]
[355109375,1740899443710,-500.0,0.00023092,2]
[355109376,1740899443720,-500.0,0.00023092,2]
[355109377,1740899443729,-500.0,0.00023092,2]
[355109378,1740899443739,-500.0,0.00023092,2]
[355109379,1740899443749,-500.0,0.00023092,2]
[355109380,1740899443759,-604.62,0.00023092,2]
[355109381,1740899443768,-500.0,0.00023092,2]
[355109382,1740899443779,-500.0,0.00023092,2]
[355109383,1740899443788,-500.0,0.00023092,2]
[355109384,1740899443798,-250.0,0.00023092,2]
[355109385,1740899443808,-500.0,0.00023092,2]
[355109386,1740899443817,-500.0,0.00023092,2]
[355109387,1740899443826,-824.41,0.00023092,2]
[355109388,1740899443836,-500.0,0.00023092,2]
[355109389,1740899443845,-472.63,0.00023092,2]
[355109390,1740899443856,-502.69,0.00023092,2]
[355109391,1740899443865,-500.0,0.00023092,2]
[355109392,1740899443875,-500.0,0.00023092,2]
[355109393,1740899443884,-1234.81,0.00023092,2]
[355109394,1740899443893,-500.0,0.00023092,2]
[355109395,1740899443903,-500.0,0.00023092,2]
[355109396,1740899443912,-500.0,0.00023092,2]
[355109397,1740899443922,-500.0,0.00023092,2]
[355109398,1740899443932,-500.0,0.00023092,2]
[355109399,1740899443941,-658.13,0.00023092,2]
[355109400,1740899443950,-500.0,0.00023092,2]
[355109401,1740899443960,-650.83,0.00023092,2]
[355109402,1740899443970,-500.0,0.00023092,2]
[355109403,1740899443979,-500.0,0.00023092,2]
[355109404,1740899443989,-500.0,0.00023092,2]
[355109405,1740899443998,-500.0,0.00023092,2]
[355109406,1740899444009,-500.0,0.00023092,2]
[355109407,1740899444019,-532.97,0.00023092,2]
[355109408,1740899444028,-1690.54,0.00023092,2]
[355109409,1740899444038,-500.0,0.00023092,2]
[355109410,1740899444048,-623.62,0.00023092,2]
[355109411,1740899444058,-500.0,0.00023092,2]
[355109412,1740899444067,-284.14,0.00023092,2]
[355109413,1740899444077,-500.0,0.00023092,2]
[355109414,1740899444086,-500.0,0.00023092,2]
[355109415,1740899444096,-500.0,0.00023092,2]
[355109416,1740899444107,-500.0,0.00023092,2]
[355109417,1740899444117,-500.0,0.00023092,2]
[355109418,1740899444126,-500.0,0.00023092,2]
[355109419,1740899444136,-500.0,0.00023092,2]
[355109420,1740899444146,-199.41,0.00023093,2]
[355109421,1740899444156,-4029.58,0.00023365,2]
[355109422,1740899444166,-2059.33,0.00023365,2]
[355109423,1740899444176,-1748.19,0.00023365,2]
[355109424,1740899444186,-532.19,0.00023365,2]
[355109425,1740899444196,-500.0,0.00023365,2]
[355109426,1740899444206,-500.0,0.00023365,2]
[355109427,1740899444216,-850.01,0.00023365,2]
[355109428,1740899444226,-1888.54,0.00023365,2]
[355109429,1740899444235,-3896.87,0.00023365,2]
[355109430,1740899444245,-2329.43,0.00023365,2]
[355109431,1740899444255,-500.0,0.00023365,2]
[355109432,1740899444264,-506.68,0.00023365,2]
[355109433,1740899444274,-854.04,0.00023365,2]
[355109434,1740899444283,-500.0,0.00023365,2]
[355109435,1740899444293,-510.21,0.00023365,2]
[355109436,1740899444303,-3214.12,0.00023365,2]
[355109437,1740899444313,-2493.01,0.00023365,2]
[355109438,1740899444324,-500.0,0.00023365,2]
[355109439,1740899444334,-500.0,0.00023365,2]
[355109440,1740899444343,-2454.17,0.00023365,2]
[355109441,1740899444354,-437.17062941,0.00023365,2]
[355109442,1740899444364,-1226.95,0.00023365,2]
[355109443,1740899444373,-500.0,0.00023365,2]
[355109444,1740899444383,-1138.39,0.00023365,2]
[355109445,1740899444393,-500.0,0.00023365,2]
[355109446,1740899444403,-500.0,0.00023365,2]
[355109447,1740899444413,-500.0,0.00023365,2]
[355109448,1740899444422,-1147.35,0.00023365,2]
[355109449,1740899444432,-2292.46,0.00023365,2]
[355109450,1740899444442,-522.8,0.00023365,2]
[355109451,1740899444451,-1534.73,0.00023365,2]
[355109452,1740899444465,-2581.43,0.00023365,2]
[355109453,1740899444475,-500.0,0.00023365,2]
[355109454,1740899444484,-695.07,0.00023365,2]
[355109455,1740899444494,-669.44,0.00023365,2]
[355109456,1740899444504,-500.0,0.00023365,2]
[355109457,1740899444513,-41690.39,0.00023365,2]
[355109458,1740899444523,-892.82,0.00023366,2]
[355109459,1740899444532,-500.0,0.00023366,2]
[355109460,1740899444543,-500.0,0.00023366,2]
[355109461,1740899444553,-500.0,0.00023366,2]
[355109462,1740899444562,-500.0,0.00023366,2]
[355109463,1740899444572,-500.0,0.00023366,2]
[355109464,1740899444581,-500.0,0.00023366,2]
[355109465,1740899444590,-500.0,0.00023366,2]
[355109466,1740899444602,-500.0,0.00023366,2]
[355109467,1740899444611,-500.0,0.00023366,2]
[355109468,1740899444620,-500.0,0.00023366,2]
[355109469,1740899444630,-500.0,0.00023366,2]
[355109470,1740899444639,-500.0,0.00023366,2]
[355109471,1740899444648,-500.0,0.00023366,2]
[355109472,1740899444657,-500.0,0.00023366,2]
[355109473,1740899444667,-500.0,0.00023366,2]
[355109474,1740899444677,-500.0,0.00023366,2]
[355109475,1740899444686,-409.66952534,0.00023366,2]
[355109476,1740899444696,-500.0,0.00023366,2]
[355109477,1740899444705,-558.57,0.00023366,2]
[355109478,1740899444715,-212.68,0.00023366,2]
[355109479,1740899444724,-500.0,0.00023366,2]
[355109480,1740899444734,-500.0,0.00023366,2]
[355109481,1740899444743,-500.0,0.00023366,2]
[355109482,1740899444753,-492.23,0.00023366,2]
[355109483,1740899444763,-250.0,0.00023366,2]
[355109484,1740899444773,-500.0,0.00023366,2]
[355109485,1740899444783,-270.32,0.00023366,2]
[355109486,1740899444793,-824.41,0.00023366,2]
[355109487,1740899444802,-500.0,0.00023366,2]
[355109488,1740899444812,-502.69,0.00023366,2]
[355109489,1740899444821,-259.62,0.00023366,2]
[355109490,1740899444832,-1234.81,0.00023366,2]
[355109491,1740899444841,-500.0,0.00023366,2]
[355109492,1740899444851,-500.0,0.00023366,2]
[355109493,1740899444861,-394.09,0.00023366,2]
[355109494,1740899444870,-500.0,0.00023366,2]
[355109495,1740899444880,-500.0,0.00023366,2]
[355109496,1740899444890,-658.13,0.00023366,2]
[355109497,1740899444899,-500.0,0.00023366,2]
[355109498,1740899444909,-650.83,0.00023366,2]
[355109499,1740899444919,-500.0,0.00023366,2]
[355109500,1740899444928,-500.0,0.00023366,2]
[355109501,1740899444938,-500.0,0.00023366,2]
[355109502,1740899444947,-500.0,0.00023366,2]
[355109503,1740899444957,-1690.54,0.00023366,2]
[355109504,1740899444966,-546.83,0.00023366,2]
[355109505,1740899444975,-623.62,0.00023366,2]
[355109506,1740899444985,-500.0,0.00023366,2]
[355109507,1740899444994,-500.0,0.00023366,2]
[355109508,1740899445003,-500.0,0.00023366,2]
[355109509,1740899445013,-500.0,0.00023366,2]
[355109510,1740899445023,-500.0,0.00023366,2]
[355109511,1740899445033,-463.80193015,0.00023471,2]
[355109512,1740899445042,-4029.58,0.00023639,2]
[355109513,1740899445052,-2059.33,0.00023639,2]
[355109514,1740899445062,-1748.19,0.00023639,2]
[355109515,1740899445071,-532.19,0.00023639,2]
[355109516,1740899445080,-500.0,0.00023639,2]
[355109517,1740899445089,-500.0,0.00023639,2]
[355109518,1740899445099,-850.01,0.00023639,2]
[355109519,1740899445110,-1888.54,0.00023639,2]
[355109520,1740899445119,-3896.87,0.00023639,2]
[355109521,1740899445128,-2329.43,0.00023639,2]
[355109522,1740899445138,-500.0,0.00023639,2]
[355109523,1740899445147,-506.68,0.00023639,2]
[355109524,1740899445157,-854.04,0.00023639,2]
[355109525,1740899445166,-500.0,0.00023639,2]
[355109526,1740899445176,-510.21,0.00023639,2]
[355109527,1740899445186,-3214.12,0.00023639,2]
[355109528,1740899445196,-2493.01,0.00023639,2]
[355109529,1740899445205,-500.0,0.00023639,2]
[355109530,1740899445215,-500.0,0.00023639,2]
[355109531,1740899445276,-2454.17,0.00023639,2]
[355109532,1740899445287,-1226.95,0.00023639,2]
[355109533,1740899445296,-500.0,0.00023639,2]
[355109534,1740899445306,-1138.39,0.00023639,2]
[355109535,1740899445315,-500.0,0.00023639,2]
[355109536,1740899445325,-500.0,0.00023639,2]
[355109537,1740899445334,-1147.35,0.00023639,2]
[355109538,1740899445344,-2292.46,0.00023639,2]
[355109539,1740899445354,-522.8,0.00023639,2]
[355109540,1740899445363,-1534.73,0.00023639,2]
[355109541,1740899445373,-2581.43,0.00023639,2]
[355109542,1740899445383,-500.0,0.00023639,2]
[355109543,1740899445392,-695.07,0.00023639,2]
[355109544,1740899445401,-669.44,0.00023639,2]
[355109545,1740899445411,-500.0,0.00023639,2]
[355109546,1740899445420,-41690.39,0.00023639,2]
[355109547,1740899445429,-892.82,0.0002364,2]
[355109548,1740899445438,-500.0,0.0002364,2]
[355109549,1740899445447,-500.0,0.0002364,2]
[355109550,1740899445459,-500.0,0.0002364,2]
[355109551,1740899445469,-500.0,0.0002364,2]
[355109552,1740899445479,-500.0,0.0002364,2]
[355109553,1740899445488,-500.0,0.0002364,2]
[355109554,1740899445499,-500.0,0.0002364,2]
[355109555,1740899445509,-500.0,0.0002364,2]
[355109556,1740899445518,-500.0,0.0002364,2]
[355109557,1740899445527,-500.0,0.0002364,2]
[355109558,1740899445538,-500.0,0.0002364,2]
[355109559,1740899445548,-500.0,0.0002364,2]
[355109560,1740899445558,-500.0,0.0002364,2]
[355109561,1740899445567,-500.0,0.0002364,2]
[355109562,1740899445576,-500.0,0.0002364,2]
[355109563,1740899445586,-500.0,0.0002364,2]
[355109564,1740899445595,-500.0,0.0002364,2]
[355109565,1740899445606,-500.0,0.0002364,2]